bitfinex-derivatives/quotes_BNBF0:USTF0_20260221
["timestamp","ask_amount","ask_price","bid_price","bid_amount"]
[1771638375803,1.59409342,628.23,627.97,0.31880354]
[1771638375999,0.27716826,628.36,627.93,1.429]
[1771638376000,1.59409342,628.27,627.98,0.31880354]
[1771638376302,1.59409342,628.27,627.99,0.31880354]
[1771638376601,1.59409342,628.27,628.0,0.31880354]
[1771638376904,1.59409342,628.27,628.01,0.31880354]
[1771638377104,1.59409342,628.27,628.02,0.31880354]
[1771638377301,1.59409342,628.27,628.03,0.31880354]
[1771638377600,1.59409342,628.27,628.04,0.31880354]
[1771638377806,1.59409342,628.27,628.05,0.31880354]
[1771638378006,1.59409342,628.27,628.06,0.31880354]
[1771638378202,1.59409342,628.27,628.07,0.31880354]
[1771638378406,1.59409342,628.27,628.08,0.31880354]
[1771638378603,1.59409342,628.27,627.93,1.429]
[1771638378802,1.59409342,628.27,627.94,0.31878314]
[1771638379001,1.59409342,628.32,627.95,0.31878314]
[1771638379203,1.59409342,628.32,627.96,0.31878314]
[1771638379407,1.59409342,628.33,627.97,0.31878314]
[1771638379603,1.59409342,628.33,627.98,0.31878314]
[1771638379907,1.59409342,628.35,627.99,0.31878314]
[1771638380102,1.59409342,628.35,627.93,1.429]
[1771638380103,1.59409342,628.35,628.0,0.31878314]
[1771638380306,1.59409342,628.35,628.01,0.31878314]
[1771638380506,1.87126168,628.36,628.02,0.31878314]
[1771638380706,1.87126168,628.36,628.03,0.31878314]
[1771638380906,1.87126168,628.36,628.04,0.31878314]
[1771638381208,1.87126168,628.36,628.05,0.31878314]
[1771638381503,1.87126168,628.36,628.06,0.31878314]
[1771638381711,1.87126168,628.36,628.07,0.31878314]
[1771638381904,1.87126168,628.36,628.08,0.31878314]
[1771638382208,1.87126168,628.36,628.09,0.31878314]
[1771638382405,1.87126168,628.36,628.1,0.31878314]
[1771638382608,1.87126168,628.36,628.11,0.31878314]
[1771638382808,1.87126168,628.36,628.12,0.31878314]
[1771638383008,1.87126168,628.36,628.13,0.31878314]
[1771638383209,1.87126168,628.36,627.93,1.429]
[1771638383409,0.27716826,628.36,627.94,0.31874495]
[1771638383607,0.27716826,628.36,627.95,0.31874495]
[1771638383805,1.59409342,628.34,627.96,0.31874495]
[1771638384010,1.59409342,628.34,627.97,0.31874495]
[1771638384212,1.59409342,628.34,627.98,0.31874495]
[1771638384509,0.27716826,628.36,627.99,0.31874495]
[1771638384709,0.27716826,628.36,628.0,0.31874495]
[1771638384906,0.27716826,628.36,628.01,0.31874495]
[1771638385106,0.27716826,628.36,628.02,0.31874495]
[1771638385405,0.27716826,628.36,628.03,0.31874495]
[1771638385609,0.27716826,628.36,628.04,0.31874495]
[1771638385806,0.27716826,628.36,628.05,0.31874495]
[1771638386012,0.27716826,628.36,628.06,0.31874495]
[1771638386308,1.59409342,628.46,628.07,0.31874495]
[1771638386507,0.27702926,628.5,628.08,0.31874495]
[1771638386714,0.27702926,628.5,628.09,0.31874495]
[1771638386915,0.27702926,628.5,628.1,0.31874495]
[1771638387118,0.27702926,628.5,628.11,0.31874495]
[1771638387413,0.27702926,628.5,628.12,0.31874495]
[1771638387617,0.27702926,628.5,627.93,1.429]
[1771638387618,0.27702926,628.5,628.13,0.31874495]
[1771638387914,0.27702926,628.5,628.14,0.31874495]
[1771638388214,0.27702926,628.5,628.15,0.31874495]
[1771638388418,0.27702926,628.5,628.16,0.31874495]
[1771638388616,0.27702926,628.5,628.17,0.31874495]
[1771638388815,0.27702926,628.5,628.18,0.31874495]
[1771638389020,0.27702926,628.5,628.19,0.31874495]
[1771638389320,0.27702926,628.5,628.2,0.31874495]
[1771638389518,0.27702926,628.5,628.21,0.31874495]
[1771638389722,0.27702926,628.5,627.93,1.429]
[1771638390018,0.27702926,628.5,627.94,0.31866627]
[1771638390319,0.27702926,628.5,627.95,0.31866627]
[1771638390518,0.27702926,628.5,627.96,0.31866627]
[1771638390723,0.27702926,628.5,627.97,0.31866627]
[1771638391017,0.27702926,628.5,627.98,0.31866627]
[1771638391221,0.27702926,628.5,627.99,0.31866627]
[1771638391521,0.27702926,628.5,628.0,0.31866627]
[1771638391721,0.27702926,628.5,628.01,0.31866627]
[1771638391919,0.27702926,628.5,628.02,0.31866627]
[1771638392123,0.27702926,628.5,628.03,0.31866627]
[1771638392423,0.27702926,628.5,628.04,0.31866627]
[1771638392622,0.27702926,628.5,628.05,0.31866627]
[1771638392818,0.27702926,628.5,628.06,0.31866627]
[1771638393022,0.27702926,628.5,628.07,0.31866627]
[1771638393222,0.27702926,628.5,628.08,0.31866627]
[1771638393418,0.27702926,628.5,628.09,0.31866627]
[1771638393719,0.27702926,628.5,628.1,0.31866627]
[1771638394018,0.27702926,628.5,628.11,0.31866627]
[1771638394223,0.27702926,628.5,628.12,0.31866627]
[1771638394424,0.27702926,628.5,627.93,1.429]
[1771638394425,0.27702926,628.5,628.13,0.31866627]
[1771638394618,0.27702926,628.5,628.14,0.31866627]
[1771638394820,0.27702926,628.5,628.15,0.31866627]
[1771638395024,0.27702926,628.5,628.16,0.31866627]
[1771638395224,0.27702926,628.5,628.17,0.31866627]
[1771638395421,0.27702926,628.5,627.93,1.429]
[1771638395422,0.27702926,628.5,628.18,0.31866627]
[1771638395621,0.27702926,628.5,628.19,0.31866627]
[1771638395925,0.27702926,628.5,628.2,0.31866627]
[1771638396221,0.27702926,628.5,628.21,0.31866627]
[1771638396425,0.27702926,628.5,627.93,1.429]
[1771638396621,0.27702926,628.5,627.94,0.31865247]
[1771638396821,0.27702926,628.5,627.95,0.31865247]
[1771638397024,0.27702926,628.5,627.96,0.31865247]
[1771638397220,0.27702926,628.5,627.97,0.31865247]
[1771638397424,0.27702926,628.5,627.98,0.31865247]
[1771638397626,0.27702926,628.5,627.99,0.31865247]
[1771638397925,0.27702926,628.5,628.0,0.31865247]
[1771638398123,0.27702926,628.5,628.01,0.31865247]
[1771638398325,0.27702926,628.5,628.02,0.31865247]
[1771638398522,0.27702926,628.5,628.03,0.31865247]
[1771638398723,0.27702926,628.5,628.04,0.31865247]
[1771638399026,0.27702926,628.5,628.05,0.31865247]
[1771638399227,0.27702926,628.5,628.06,0.31865247]
[1771638399428,0.27702926,628.5,628.07,0.31865247]
[1771638399724,0.27702926,628.5,628.08,0.31865247]
[1771638399924,0.27702926,628.5,628.09,0.31865247]
[1771638400128,0.27702926,628.5,628.1,0.31865247]
[1771638400326,0.27702926,628.5,628.11,0.31865247]
[1771638400530,0.27702926,628.5,628.12,0.31865247]
[1771638400728,0.27702926,628.5,628.13,0.31865247]
[1771638400925,0.27702926,628.5,628.14,0.31865247]
[1771638401129,0.27702926,628.5,628.15,0.31865247]
[1771638401428,0.27702926,628.5,628.16,0.31865247]
[1771638401629,0.27702926,628.5,628.17,0.31865247]
[1771638401829,0.27702926,628.5,628.18,0.31865247]
[1771638402030,0.27702926,628.5,628.19,0.31865247]
[1771638402228,0.27702926,628.5,628.2,0.31865247]
[1771638402527,0.27702926,628.5,627.93,1.429]
[1771638402727,0.27702926,628.5,627.94,0.31864851]
[1771638403028,0.27702926,628.5,627.95,0.31864851]
[1771638403229,0.27702926,628.5,627.96,0.31864851]
[1771638403530,0.27702926,628.5,627.97,0.31864851]
[1771638403729,0.27702926,628.5,627.93,1.429]
[1771638403730,0.27702926,628.5,627.98,0.31864851]
[1771638403930,0.27702926,628.5,627.99,0.31864851]
[1771638404125,0.27702926,628.5,628.0,0.31864851]
[1771638404328,0.27702926,628.5,628.01,0.31864851]
[1771638404528,0.27702926,628.5,628.02,0.31864851]
[1771638404728,0.27702926,628.5,628.03,0.31864851]
[1771638404931,0.27702926,628.5,628.04,0.31864851]
[1771638405128,0.27702926,628.5,628.05,0.31864851]
[1771638405431,0.27702926,628.5,628.06,0.31864851]
[1771638405630,0.27702926,628.5,628.07,0.31864851]
[1771638405830,0.27702926,628.5,628.08,0.31864851]
[1771638406030,0.27702926,628.5,628.09,0.31864851]
[1771638406231,0.27702926,628.5,628.1,0.31864851]
[1771638406428,0.27702926,628.5,628.11,0.31864851]
[1771638406632,0.27702926,628.5,628.12,0.31864851]
[1771638406927,0.27702926,628.5,628.13,0.31864851]
[1771638407127,0.27702926,628.5,628.14,0.31864851]
[1771638407330,0.27702926,628.5,628.15,0.31864851]
[1771638407531,0.27702926,628.5,628.16,0.31864851]
[1771638407725,0.27702926,628.5,628.17,0.31864851]
[1771638407931,0.27702926,628.5,628.18,0.31864851]
[1771638408127,0.27702926,628.5,628.19,0.31864851]
[1771638408332,0.27702926,628.5,628.2,0.31864851]
[1771638408532,0.27702926,628.5,628.21,0.31864851]
[1771638408732,0.27702926,628.5,628.22,0.31864851]
[1771638408932,0.27702926,628.5,628.23,0.31864851]
[1771638409133,0.27702926,628.5,627.93,1.429]
[1771638409331,0.27702926,628.5,627.94,0.31864851]
[1771638409530,0.27702926,628.5,627.95,0.31864851]
[1771638409728,0.27702926,628.5,627.96,0.31864851]
[1771638409932,0.27702926,628.5,627.97,0.31864851]
[1771638410132,0.27702926,628.5,627.98,0.31864851]
[1771638410333,0.27702926,628.5,627.99,0.31864851]
[1771638410628,0.27702926,628.5,627.93,1.429]
[1771638410629,0.27702926,628.5,628.0,0.31864851]
[1771638410828,0.27702926,628.5,628.01,0.31864851]
[1771638411029,0.27702926,628.5,628.02,0.31864851]
[1771638411234,0.27702926,628.5,628.03,0.31864851]
[1771638411529,0.27702926,628.5,628.04,0.31864851]
[1771638411733,0.27702926,628.5,628.05,0.31864851]
[1771638411933,0.27702926,628.5,628.06,0.31864851]
[1771638412133,0.27702926,628.5,628.07,0.31864851]
[1771638412333,0.27702926,628.5,628.08,0.31864851]
[1771638412634,0.27702926,628.5,628.09,0.31864851]
[1771638412834,0.27702926,628.5,628.1,0.31864851]
[1771638413036,0.27702926,628.5,628.11,0.31864851]
[1771638413234,0.27702926,628.5,628.12,0.31864851]
[1771638413432,0.27702926,628.5,628.13,0.31864851]
[1771638413637,0.27702926,628.5,628.14,0.31864851]
[1771638413836,0.27702926,628.5,627.93,1.429]
[1771638413837,0.27702926,628.5,628.15,0.31864851]
[1771638414135,0.27702926,628.5,628.16,0.31864851]
[1771638414332,0.27702926,628.5,628.17,0.31864851]
[1771638414631,0.27702926,628.5,628.18,0.31864851]
[1771638414933,0.27702926,628.5,627.93,1.429]
[1771638414934,0.27702926,628.5,628.19,0.31864851]
[1771638415136,0.27702926,628.5,628.2,0.31864851]
[1771638415337,0.27702926,628.5,628.21,0.31864851]
[1771638415533,0.27702926,628.5,628.22,0.31864851]
[1771638415834,0.27702926,628.5,627.93,1.429]
[1771638416133,0.27702926,628.5,627.94,0.31864804]
[1771638416337,0.27702926,628.5,627.95,0.31864804]
[1771638416538,0.27702926,628.5,627.96,0.31864804]
[1771638416738,0.27702926,628.5,627.97,0.31864804]
[1771638416939,0.27702926,628.5,627.98,0.31864804]
[1771638417136,0.27702926,628.5,627.99,0.31864804]
[1771638417336,0.27702926,628.5,628.0,0.31864804]
[1771638417536,0.27702926,628.5,628.01,0.31864804]
[1771638417735,0.27702926,628.5,628.02,0.31864804]
[1771638417936,0.27702926,628.5,628.03,0.31864804]
[1771638418139,0.27702926,628.5,628.04,0.31864804]
[1771638418338,0.27702926,628.5,628.05,0.31864804]
[1771638418533,0.27702926,628.5,628.06,0.31864804]
[1771638418738,0.27702926,628.5,628.07,0.31864804]
[1771638419039,0.27702926,628.5,628.08,0.31864804]
[1771638419238,0.27702926,628.5,628.09,0.31864804]
[1771638419440,0.27702926,628.5,628.1,0.31864804]
[1771638419739,0.27702926,628.5,627.73,1.17698275]
[1771638419740,0.27702926,628.5,628.11,0.31864804]
[1771638419939,0.27702926,628.5,628.12,0.31864804]
[1771638420235,0.27702926,628.5,628.13,0.31864804]
[1771638420435,0.27702926,628.5,628.14,0.31864804]
[1771638420735,0.27702926,628.5,628.15,0.31864804]
[1771638421039,0.27702926,628.5,628.16,0.31864804]
[1771638421242,0.27702926,628.5,627.74,1.17698275]
[1771638421442,0.27702926,628.5,627.75,0.31864804]
[1771638421738,0.27702926,628.5,627.76,0.31864804]
[1771638422042,0.27702926,628.5,627.77,0.31864804]
[1771638422243,0.27702926,628.5,627.78,0.31864804]
[1771638422445,0.27702926,628.5,627.79,0.31864804]
[1771638422640,0.27702926,628.5,627.8,0.31864804]
[1771638422844,0.27702926,628.5,627.81,0.31864804]
[1771638423044,0.27702926,628.5,627.82,0.31864804]
[1771638423245,0.27702926,628.5,627.83,0.31864804]
[1771638423445,0.27702926,628.5,627.84,0.31864804]
[1771638423746,0.27702926,628.5,627.85,0.31864804]
[1771638423941,0.27702926,628.5,627.86,0.31864804]
[1771638424142,0.27702926,628.5,627.87,0.31864804]
[1771638424442,0.27702926,628.5,627.88,0.31864804]
[1771638424646,0.27702926,628.5,627.89,0.31864804]
[1771638424941,0.27702926,628.5,627.83,1.17698275]
[1771638424942,0.27702926,628.5,627.9,0.31864804]
[1771638425142,0.27702926,628.5,627.91,0.31864804]
[1771638425347,0.27702926,628.5,627.83,1.17698275]
[1771638425348,0.27702926,628.5,627.92,0.31864804]
[1771638425645,0.27702926,628.5,627.93,0.31864804]
[1771638425944,0.27702926,628.5,627.94,0.31864804]
[1771638426142,0.27702926,628.5,627.95,0.31864804]
[1771638426341,0.27702926,628.5,627.96,0.31864804]
[1771638426543,0.27702926,628.5,627.97,0.31864804]
[1771638426746,0.27702926,628.5,627.98,0.31864804]
[1771638426947,0.27702926,628.5,627.99,0.31864804]
[1771638427145,0.27702926,628.5,628.0,0.31864804]
[1771638427344,0.27702926,628.5,628.01,0.31864804]
[1771638427546,0.27702926,628.5,628.02,0.31864804]
[1771638427745,0.27702926,628.5,628.03,0.31864804]
[1771638427949,0.27702926,628.5,628.04,0.31864804]
[1771638428148,0.27702926,628.5,628.05,0.31864804]
[1771638428349,0.27702926,628.5,628.06,0.31864804]
[1771638428546,0.27702926,628.5,628.07,0.31864804]
[1771638428749,0.27702926,628.5,628.08,0.31864804]
[1771638428949,0.27702926,628.5,628.09,0.31864804]
[1771638429150,0.27702926,628.5,628.1,0.31864804]
[1771638429347,0.27702926,628.5,628.11,0.31864804]
[1771638429652,0.27702926,628.5,628.12,0.31864804]
[1771638429845,0.27702926,628.5,628.13,0.31864804]
[1771638430149,0.27702926,628.5,628.14,0.31864804]
[1771638430347,0.27702926,628.5,628.15,0.31864804]
[1771638430548,0.27702926,628.5,628.16,0.31864804]
[1771638430749,0.27702926,628.5,628.17,0.31864804]
[1771638430947,0.27702926,628.5,628.18,0.31864804]
[1771638431146,0.27702926,628.5,628.19,0.31864804]
[1771638431447,0.27702926,628.5,628.2,0.31864804]
[1771638431749,0.27702926,628.5,628.21,0.31864804]
[1771638431950,0.27702926,628.5,628.22,0.31864804]
[1771638432147,0.27702926,628.5,628.23,0.31864804]
[1771638432448,0.27702926,628.5,628.24,0.31864804]
[1771638432650,0.27702926,628.5,628.25,0.31864804]
[1771638432851,0.27702926,628.5,628.26,0.31864804]
[1771638433147,0.27702926,628.5,628.27,0.31864804]
[1771638433346,0.27702926,628.5,628.28,0.31864804]
[1771638433551,0.27702926,628.5,628.29,0.31864804]
[1771638433751,1.58398061,628.56,628.3,0.31864804]
[1771638433953,1.58398061,628.55,628.31,0.31864804]
[1771638434152,1.58398061,628.55,628.32,0.31864804]
[1771638434451,1.58398061,628.55,628.33,0.31864804]
[1771638434651,1.58398061,628.55,628.34,0.31864804]
[1771638434951,1.58398061,628.62,628.35,0.31864804]
[1771638435145,1.58398061,628.62,628.36,0.31864804]
[1771638435348,1.58398061,628.63,628.37,0.31864804]
[1771638435547,1.58398061,628.63,628.38,0.31864804]
[1771638435852,1.58398061,628.64,628.39,0.31864804]
[1771638436051,1.86096687,628.66,628.4,0.31864804]
[1771638436351,0.27698626,628.66,628.41,0.31864804]
[1771638436549,0.27698626,628.66,628.42,0.31864804]
[1771638436850,0.27698626,628.66,628.43,0.31864804]
[1771638437050,0.27698626,628.66,628.44,0.31864804]
[1771638437248,0.27698626,628.66,628.45,0.31864804]
[1771638437452,0.27698626,628.66,628.46,0.31864804]
[1771638437652,0.27698626,628.66,627.96,1.1836379]
[1771638437951,0.27698626,628.66,627.97,0.31859614]
[1771638438151,0.27698626,628.66,627.98,0.31859614]
[1771638438346,0.27698626,628.66,627.99,0.31859614]
[1771638438650,0.27698626,628.66,628.0,0.31859614]
[1771638438848,0.27698626,628.66,628.01,0.31859614]
[1771638439051,0.27698626,628.66,628.02,0.31859614]
[1771638439251,0.27698626,628.66,628.03,0.31859614]
[1771638439452,0.27698626,628.66,628.04,0.31859614]
[1771638439649,0.27698626,628.66,628.05,0.31859614]
[1771638439847,0.27698626,628.66,628.06,0.31859614]
[1771638440053,0.27698626,628.66,628.07,0.31859614]
[1771638440250,0.27698626,628.66,628.08,0.31859614]
[1771638440449,0.27698626,628.66,628.09,0.31859614]
[1771638440649,0.27698626,628.66,628.1,0.31859614]
[1771638440854,0.27698626,628.66,628.11,0.31859614]
[1771638441051,0.27698626,628.66,628.12,0.31859614]
[1771638441351,0.27698626,628.66,628.13,0.31859614]
[1771638441554,0.27698626,628.66,628.14,0.31859614]
[1771638441855,0.27698626,628.66,628.15,0.31859614]
[1771638442155,66.27456464,629.12,628.16,0.31859614]
[1771638442156,1.58398061,628.85,628.16,0.31859614]
[1771638442356,0.27692455,628.82,628.17,0.31859614]
[1771638442556,0.27692455,628.82,628.18,0.31859614]
[1771638442757,0.27692455,628.82,628.19,0.31859614]
[1771638442957,1.58398061,628.85,628.2,0.31859614]
[1771638443158,1.58398061,628.86,628.21,0.31859614]
[1771638443358,1.58398061,628.86,628.22,0.31859614]
[1771638443559,1.58398061,628.86,628.23,0.31859614]
[1771638443854,1.58398061,628.82,628.24,0.31859614]
[1771638444156,1.58398061,628.83,628.25,0.31859614]
[1771638444352,1.58398061,628.83,628.26,0.31859614]
[1771638444557,1.58398061,628.89,628.27,0.31859614]
[1771638444755,1.58398061,628.89,628.28,0.31859614]
[1771638444957,1.58398061,628.89,628.29,0.31859614]
[1771638445157,1.58398061,628.9,628.3,0.31859614]
[1771638445359,1.58398061,628.9,628.31,0.31859614]
[1771638445558,1.58398061,628.92,628.32,0.31859614]
[1771638445858,1.58398061,628.93,628.33,0.31859614]
[1771638446059,1.58398061,628.93,628.34,0.31859614]
[1771638446256,1.58398061,628.94,628.35,0.31859614]
[1771638446555,1.58398061,628.98,628.36,0.31859614]
[1771638446754,1.58398061,628.97,628.37,0.31859614]
[1771638446957,1.58398061,628.97,628.38,0.31859614]
[1771638447155,1.58398061,628.97,628.39,0.31859614]
[1771638447359,1.58398061,628.95,628.4,0.31859614]
[1771638447556,1.58398061,628.95,628.04,1.1836379]
[1771638447557,1.58398061,628.95,628.41,0.31859614]
[1771638447860,1.58398061,628.95,628.04,1.1836379]
[1771638447861,1.58398061,628.95,628.42,0.31859614]
[1771638448058,1.58398061,628.95,628.43,0.31859614]
[1771638448359,1.58398061,628.95,627.93,1.56931033]
[1771638448360,1.58398061,628.96,628.44,0.31859614]
[1771638448656,1.58398061,628.96,628.45,0.31859614]
[1771638448860,1.58398061,628.96,628.46,0.31859614]
[1771638449061,1.58398061,628.96,628.47,0.31859614]
[1771638449356,1.58398061,628.97,628.48,0.31859614]
[1771638449560,1.58398061,628.97,628.49,0.31859614]
[1771638449758,1.58398061,628.97,628.5,0.31859614]
[1771638449958,1.58398061,628.97,628.51,0.31859614]
[1771638450160,1.58398061,628.98,628.52,0.31859614]
[1771638450361,1.58398061,628.98,628.48,1.149]
[1771638450562,1.58398061,628.98,628.49,0.31848261]
[1771638450763,1.58398061,628.98,628.5,0.31848261]
[1771638451059,1.58398061,628.98,628.51,0.31848261]
[1771638451263,1.58398061,628.99,628.52,0.31848261]
[1771638451461,1.58398061,628.99,628.48,1.149]
[1771638451657,1.58398061,628.99,628.49,0.31848306]
[1771638451859,1.58398061,628.99,628.5,0.31848306]
[1771638452060,1.58398061,628.99,628.51,0.31848306]
[1771638452363,1.58398061,628.99,628.48,1.149]
[1771638452559,1.58398061,628.99,628.49,0.31848306]
[1771638452859,1.58398061,628.99,628.5,0.31848306]
[1771638453061,1.58398061,628.99,628.48,1.149]
[1771638453062,1.58398061,628.99,628.51,0.31848306]
[1771638453262,1.58398061,629.0,628.48,1.149]
[1771638453460,1.58398061,629.0,628.49,0.31848344]
[1771638453663,1.58398061,629.0,628.5,0.31848344]
[1771638453964,1.58398061,628.94,628.51,0.31848344]
[1771638454160,1.58398061,628.94,628.48,1.149]
[1771638456161,1.58398061,628.95,628.48,1.149]
[1771638459368,1.58398061,628.96,628.48,1.149]
[1771638462772,1.58398061,628.95,628.48,1.149]
[1771638463873,1.58398061,629.0,628.48,1.149]
[1771638464273,1.58398061,629.0,628.49,0.31848753]
[1771638464473,1.58398061,629.0,628.48,1.149]
[1771638464770,1.58398061,629.0,628.49,0.31848753]
[1771638464970,1.58398061,629.0,628.48,1.149]
[1771638465169,1.58398061,629.0,628.49,0.31848753]
[1771638465374,1.58398061,629.0,628.48,1.149]
[1771638465575,1.58398061,629.0,628.49,0.31848753]
[1771638465870,1.58398061,628.98,628.48,1.149]
[1771638467277,1.58398061,628.97,628.48,1.149]
[1771638470178,1.58398061,628.96,628.48,1.149]
[1771638471076,1.58398061,628.96,628.49,0.31849935]
[1771638471280,1.58398061,628.96,628.48,1.149]
[1771638471477,1.58398061,628.96,628.49,0.31849935]
[1771638471681,1.58398061,628.96,628.48,1.149]
[1771638471878,1.58398061,628.96,628.49,0.31849935]
[1771638472077,0.27685405,629.01,628.48,1.149]
[1771638472078,1.58398061,628.95,628.48,1.149]
[1771638472281,1.58398061,628.95,628.49,0.31849935]
[1771638472481,1.58398061,628.95,628.48,1.149]
[1771638472681,1.58398061,628.95,628.49,0.31849941]
[1771638472881,1.58398061,628.95,628.48,1.149]
[1771638473181,1.58398061,628.95,628.49,0.31849941]
[1771638473377,1.58398061,628.95,628.5,0.31849941]
[1771638473678,1.58398061,628.93,628.48,1.149]
[1771638474181,1.58398061,628.93,628.49,0.3185074]
[1771638474381,1.58398061,628.93,628.48,1.149]
[1771638474680,1.58398061,628.93,628.49,0.31850733]
[1771638474879,1.58398061,628.93,628.48,1.149]
[1771638475082,1.58398061,628.93,628.49,0.3185071]
[1771638475281,1.58398061,628.92,628.48,1.149]
[1771638475483,1.58398061,628.92,628.49,0.3185071]
[1771638475682,1.58398061,628.92,628.48,1.149]
[1771638475880,1.58398061,628.92,628.49,0.3185071]
[1771638476185,1.58398061,628.91,628.5,0.3185071]
[1771638476480,1.58398061,628.91,628.48,1.149]
[1771638476684,1.58398061,628.91,628.49,0.31850698]
[1771638476881,1.58398061,628.91,628.5,0.31850698]
[1771638477085,1.58398061,628.89,628.48,1.149]
[1771638477285,1.58398061,628.89,628.49,0.31850691]
[1771638477580,1.58398061,628.89,628.5,0.31850691]
[1771638477784,1.58398061,628.89,628.51,0.31850691]
[1771638478080,1.58398061,628.89,628.52,0.31850666]
[1771638478381,1.58398061,628.88,628.48,1.149]
[1771638478682,1.58398061,628.88,628.49,0.31850666]
[1771638478884,1.58398061,628.88,628.5,0.31850666]
[1771638479085,1.58398061,628.88,628.51,0.31850666]
[1771638479382,1.58398061,628.87,628.52,0.31850666]
[1771638479583,1.58398061,628.87,628.53,0.31850666]
[1771638479883,1.58398061,628.87,628.48,1.149]
[1771638480186,1.58398061,628.86,628.49,0.31850659]
[1771638480386,1.58398061,628.86,628.5,0.31850659]
[1771638480588,1.58398061,628.87,628.51,0.31850659]
[1771638480789,1.58398061,628.87,628.52,0.31850659]
[1771638480988,1.58398061,628.87,628.53,0.31850659]
[1771638481187,1.58398061,628.87,628.54,0.31850659]
[1771638481487,1.58398061,628.87,628.55,0.31850659]
[1771638481690,1.58398061,628.87,628.48,1.149]
[1771638481886,1.58398061,628.87,628.49,0.31850276]
[1771638482088,1.58398061,628.86,628.5,0.31850276]
[1771638482288,1.58398061,628.86,628.51,0.31850276]
[1771638482490,1.58398061,628.86,628.52,0.31850276]
[1771638482687,1.58398061,628.86,628.53,0.31850276]
[1771638482888,1.58398061,628.86,628.54,0.31850276]
[1771638483089,1.58398061,628.85,628.55,0.31850276]
[1771638483291,1.58398061,628.85,628.56,0.31850276]
[1771638483486,1.58398061,628.85,628.57,0.31850276]
[1771638483691,1.58398061,628.85,628.48,1.149]
[1771638483889,1.58398061,628.85,628.49,0.31850263]
[1771638484088,1.58398061,628.85,628.5,0.31850263]
[1771638484291,0.27685405,629.01,628.51,0.31850263]
[1771638484292,1.58398061,628.84,628.51,0.31850263]
[1771638484492,1.58398061,628.84,628.52,0.31850263]
[1771638484694,1.58398061,628.84,628.53,0.31850263]
[1771638484991,1.58398061,628.84,628.54,0.31850263]
[1771638485187,1.58398061,628.83,628.55,0.31850263]
[1771638485388,1.58398061,628.83,628.56,0.31850263]
[1771638485592,1.58398061,628.83,628.57,0.31850263]
[1771638485790,1.58398061,628.83,628.58,0.31850263]
[1771638485989,1.58398061,628.83,628.48,1.149]
[1771638486192,0.27685405,629.01,628.49,0.31850263]
[1771638486193,1.58398061,628.81,628.49,0.31850263]
[1771638486492,1.58398061,628.81,628.48,1.149]
[1771638486493,1.58398061,628.81,628.5,0.31850263]
[1771638486689,1.58398061,628.81,628.51,0.31850263]
[1771638486893,1.58398061,628.81,628.52,0.31850263]
[1771638487093,1.58398061,628.81,628.53,0.31850263]
[1771638487293,1.58398061,628.81,628.54,0.31850263]
[1771638487493,1.58398061,628.81,628.55,0.31850263]
[1771638487694,1.58398061,628.81,628.56,0.31850263]
[1771638487990,1.58398061,628.81,628.57,0.31850263]
[1771638488190,1.58398061,628.8,628.58,0.31850263]
[1771638488390,1.58398061,628.8,628.59,0.31850263]
[1771638488590,1.58398061,628.8,628.6,0.31850263]
[1771638488789,1.58398061,628.8,628.48,1.149]
[1771638489089,1.58398061,628.8,628.49,0.31850257]
[1771638489392,1.58398061,628.8,628.5,0.31850257]
[1771638489590,1.58398061,628.8,628.51,0.31850257]
[1771638489792,1.58398061,628.79,628.52,0.31850257]
[1771638490092,1.58398061,628.79,628.48,1.149]
[1771638490093,1.58398061,628.79,628.53,0.31850257]
[1771638490289,1.58398061,628.79,628.54,0.31850257]
[1771638490594,1.58398061,628.79,628.55,0.31850257]
[1771638490891,1.58398061,628.79,628.56,0.31850257]
[1771638491090,1.58398061,628.79,628.57,0.31850257]
[1771638491289,1.58398061,628.79,628.58,0.31850257]
[1771638491494,1.58398061,628.79,628.59,0.31850257]
[1771638491691,1.58398061,628.79,628.48,1.149]
[1771638491895,1.58398061,628.79,628.49,0.31850869]
[1771638492093,1.58398061,628.79,628.5,0.31850869]
[1771638492297,1.58398061,628.78,628.51,0.31850869]
[1771638492496,1.58398061,628.78,628.52,0.31850869]
[1771638492693,1.58398061,628.78,628.53,0.31850869]
[1771638492892,1.58398061,628.78,628.54,0.31850869]
[1771638493092,1.58398061,628.78,628.55,0.31850869]
[1771638493391,1.58398061,628.78,628.56,0.31850869]
[1771638493592,1.58398061,628.78,628.57,0.31850869]
[1771638493796,1.58398061,628.78,628.58,0.31850869]
[1771638493996,1.58398061,628.79,628.59,0.31850869]
[1771638494198,1.58398061,628.79,628.48,1.149]
[1771638494497,1.58398061,628.79,628.49,0.31850844]
[1771638494692,1.58398061,628.79,628.5,0.31850844]
[1771638494896,1.58398061,628.79,628.51,0.31850844]
[1771638495094,1.58398061,628.79,628.52,0.31850844]
[1771638495294,1.58398061,628.79,628.53,0.31850844]
[1771638495497,1.58398061,628.79,628.54,0.31850844]
[1771638495796,1.58398061,628.79,628.55,0.31850844]
[1771638495994,1.58398061,628.79,628.56,0.31850844]